﻿Department family,Entity,Date,Expense type,Expense area,Supplier,Transaction number,Amount,Description,Supplier Postcode
Families & Specialist Services,Radiology,11/08/2023,Contractual Clinical Services,Rad General,4 Ways Healthcare Ltd,4WHC/03240008,"29,624.81 ",Teleradiology Reporting,HP2 7BF
Balance Sheet,L2 Current Assets,04/08/2023,Finished Processed Goods,Stock & Work In Progress,Alliance Healthcare Distribution Ltd,F37751239,"67,862.21 ",Pharmaceutical Purchase,KT9 1SN
Balance Sheet,L2 Current Assets,18/08/2023,Finished Processed Goods,Stock & Work In Progress,Alliance Healthcare Distribution Ltd,F37L52267,"67,459.80 ",Pharmaceutical Purchase,KT9 1SN
Balance Sheet,L2 Current Assets,25/08/2023,Finished Processed Goods,Stock & Work In Progress,Alliance Healthcare Distribution Ltd,F37R51262,"67,459.80 ",Pharmaceutical Purchase,KT9 1SN
Balance Sheet,L2 Current Assets,04/08/2023,Finished Processed Goods,Stock & Work In Progress,Alloga Uk Ltd,SIN103841616,"27,000.00 ",Pharmaceutical Purchase,DE55 2FH
Balance Sheet,L2 Current Assets,25/08/2023,Finished Processed Goods,Stock & Work In Progress,Alloga Uk Ltd,SIN103860907,"27,000.00 ",Pharmaceutical Purchase,DE55 2FH
CHS Facilities,L2 Facilities,16/08/2023,Water,Equipment Loan,Anglian Water Business National t/a Wave Utilities,1052552,263.36,Mains water Elland,DH1 5FJ
CHS Estates,L2 Estates,16/08/2023,Water,Estates Operations,Anglian Water Business National t/a Wave Utilities,1052552,"44,041.85",Mains water Huddersfield,DH1 5FJ
CHS Estates,L2 Estates,16/08/2023,Water,Estates Operations,Anglian Water Business National t/a Wave Utilities,1052552,"22,703.75",Mains water CRH,DH1 5FJ
CHS Estates,L2 Estates,16/08/2023,Water,Estates Operations,Anglian Water Business National t/a Wave Utilities,1052552,"2,458.08",Mains water Huddersfield,DH1 5FJ
CHS Estates,L2 Estates,16/08/2023,Water,Estates Properties,Anglian Water Business National t/a Wave Utilities,1052552,75.06,Mains water Huddersfield,DH1 5FJ
CHS Estates,L2 Estates,16/08/2023,Water,Estates Properties,Anglian Water Business National t/a Wave Utilities,1052552,101.27,Mains water Beechwood Health centre,DH1 5FJ
CHS Estates,L2 Estates,16/08/2023,Water,Estates Properties,Anglian Water Business National t/a Wave Utilities,1052552,272.86,Mains water Broad Street Health centre,DH1 5FJ
CHS Balance Sheet,Fixed Assets,25/08/2023,Additions - Assets Under Construction,Tangible,Atherden Fuller Leng Ltd,63237,"31,994.40 ",BROADSTREET CDC - FEE ESTIMATE FOR THE DESIGN OF THE PROPOSED NEW CDC AS BROADSTREET HC AS PER YOUR QUOTE ,M2 3NQ
CHS Estates,L2 Estates,16/08/2023,Contract : Other External,Medical Physics,B Braun Sterilog (Yorkshire) Ltd,328747022,"197,932.21 ",Decontamination Services for Surgical & Podiatry,S35 2PW
Balance Sheet,Fixed Assets,04/08/2023,Additions - Assets Under Construction,Capital (Surgical),B. Braun Medical Ltd,63315848,"14,000.00",PV630  EV3.0 CAMERA CONTROL UNIT,S35 2PH
Balance Sheet,Fixed Assets,04/08/2023,Additions - Assets Under Construction,Capital (Surgical),B. Braun Medical Ltd,63315848,"3,300.00",OP950  LED LIGHT SOURCE,S35 2PH
Balance Sheet,Fixed Assets,04/08/2023,Additions - Assets Under Construction,Capital (Surgical),B. Braun Medical Ltd,63315848,100.00,OP941  LIGHT CABLE ADAPTER,S35 2PH
Balance Sheet,Fixed Assets,04/08/2023,Additions - Assets Under Construction,Capital (Surgical),B. Braun Medical Ltd,63315848,"5,750.00",PV640 EDDY 3D DOCUMENTATION SYSTEM,S35 2PH
Balance Sheet,Fixed Assets,04/08/2023,Additions - Assets Under Construction,Capital (Surgical),B. Braun Medical Ltd,63315848,"20,000.00","PV644  31"" 4K UHD 3D MONITOR",S35 2PH
Balance Sheet,Fixed Assets,04/08/2023,Additions - Assets Under Construction,Capital (Surgical),B. Braun Medical Ltd,63315848,"1,500.00","PV904 21.5"" FULL HD MONITOR",S35 2PH
Balance Sheet,Fixed Assets,04/08/2023,Additions - Assets Under Construction,Capital (Surgical),B. Braun Medical Ltd,63315848,400.00,PV636 EV3.0 CAMERA HEAD HOLDER,S35 2PH
Balance Sheet,Fixed Assets,04/08/2023,Additions - Assets Under Construction,Capital (Surgical),B. Braun Medical Ltd,63315848,"3,750.00",MEDICART-10341  EINSTEINVISION 3D Cart Pack8 ,S35 2PH
Balance Sheet,Fixed Assets,04/08/2023,Additions - Assets Under Construction,Capital (Surgical),B. Braun Medical Ltd,63315848,20.00,PV427 SDI CONNECTING CABLE,S35 2PH
Balance Sheet,Fixed Assets,04/08/2023,Additions - Assets Under Construction,Capital (Surgical),B. Braun Medical Ltd,63315848,"5,180.00",PG150 FLOW50 INSUFFLATOR W/SMOKE EVACUATION,S35 2PH
Balance Sheet,Fixed Assets,04/08/2023,Additions - Assets Under Construction,Capital (Surgical),B. Braun Medical Ltd,63315848,"2,200.00",SONY-UP-DR80MD SONY A4 Digital Color Printer UP-DR80MD,S35 2PH
Balance Sheet,Fixed Assets,04/08/2023,Additions - Assets Under Construction,Capital (Surgical),B. Braun Medical Ltd,63315848,350.00,EV-000020  KEYBOARD FOR 3D SYSTEM,S35 2PH
Balance Sheet,Fixed Assets,04/08/2023,Additions - Assets Under Construction,Capital (Surgical),B. Braun Medical Ltd,63315848,300.00,PG058 HOSE F/CO2 GAS BOTTLE SUPPLY PIN/US 1.5M,S35 2PH
Balance Sheet,Fixed Assets,04/08/2023,Additions - Assets Under Construction,Capital (Surgical),B. Braun Medical Ltd,63315848,"5,000.00",PV482  CMOS ZOOM CAMERA HEAD,S35 2PH
Balance Sheet,Fixed Assets,04/08/2023,Additions - Assets Under Construction,Capital (Surgical),B. Braun Medical Ltd,63315848,"19,000.00",PV631  EV3.0 CAMERA HEAD 0°,S35 2PH
Balance Sheet,Fixed Assets,04/08/2023,Additions - Assets Under Construction,Capital (Surgical),B. Braun Medical Ltd,63315848,400.00,QW229  TRANSPORTATION BOX FOR 3D CAMERA HEADS,S35 2PH
Balance Sheet,Fixed Assets,04/08/2023,Additions - Assets Under Construction,Capital (Surgical),B. Braun Medical Ltd,63315848,130.00,PV621 3D POLARISATION GLASSES,S35 2PH
Balance Sheet,Fixed Assets,04/08/2023,Additions - Assets Under Construction,Capital (Surgical),B. Braun Medical Ltd,63315848,470.00,PV622  3D ANTI-FOG GLASSES,S35 2PH
Balance Sheet,L2 Current Assets,04/08/2023,Finished Processed Goods,Stock & Work In Progress,Bayer Plc,824C503582,"27,373.68 ",Pharmaceutical Purchase,RG2 6AD
Balance Sheet,L2 Current Assets,11/08/2023,Finished Processed Goods,Stock & Work In Progress,Bayer Plc,824C505287,"27,373.68 ",Pharmaceutical Purchase,RG2 6AD
Balance Sheet,L2 Current Assets,23/08/2023,Finished Processed Goods,Stock & Work In Progress,Bayer Plc,824C507994,"114,057.00 ",Pharmaceutical Purchase,RG2 6AD
Balance Sheet,L2 Current Assets,23/08/2023,Finished Processed Goods,Stock & Work In Progress,Bayer Plc,824C507995,"27,373.68 ",Pharmaceutical Purchase,RG2 6AD
Balance Sheet,L2 Current Assets,25/08/2023,Finished Processed Goods,Stock & Work In Progress,Bayer Plc,824C519183,"27,373.68 ",Pharmaceutical Purchase,RG2 6AD
Families & Specialist Services,Pathology,25/08/2023,Laboratory Test Kits,Microbiology,Becton Dickinson UK Ltd,230033483,"37,213.87 ",Managed Service Contract (non-CoVID) ,RG41 5TS
Families & Specialist Services,Pathology,04/08/2023,Laboratory Test Kits,Microbiology,Becton Dickinson UK Ltd,230036330,"47,308.66 ",Managed Service Contract (non-CoVID) ,RG41 5TS
Families & Specialist Services,Pathology,25/08/2023,Laboratory Test Kits,Microbiology,Becton Dickinson UK Ltd,230055411,"25,424.76 ",Managed Service Contract (non-CoVID) ,RG41 5TS
Families & Specialist Services,Radiology,09/08/2023,Computer Software / License Fees,Rad General,Behold.ai Technologies Ltd,1047,"108,000.00 ",Artificial Intelligence (AI) CXR (40K) & CT(50k) per Year 2.For Licences,TN39 5ES
Medical Division,Emergency Medicine,18/08/2023,Healthcare From Local Authorities,A&E Nursing,Bradford Children and Families Trust Limited,05,"43,500.00 ",First 3 month of Breaking the Cycle Contract C119832,BD5 0QL
CHS Facilities,L2 Facilities,09/08/2023,Vehicle Insurance,Equipment Loan,Brian Johnston & Co (Insurance Brokers) Ltd,671211/563800,"34,885.00 ",Vehicle insurance for CHS 1/7/23 to 30/6/24 Loan stores element x 11 vehicles,RH1 1BL
CHS Facilities,L2 Facilities,09/08/2023,Vehicle Insurance,Transport,Brian Johnston & Co (Insurance Brokers) Ltd,671211/563800,"34,885.00 ",Vehicle insurance for CHS fleet Vehicles 1/7/23 to 30/6/24. Transport element ,RH1 1BL
Balance Sheet,L2 Current Assets,09/08/2023,Finished Processed Goods,Stock & Work In Progress,Bristol Myers Squibb Pharmaceuticals Ltd,100721943,"35,790.30 ",Pharmaceutical Purchase,CH4 9QW
Surgery & Anaesthetics,Surgical Divisional Support,02/08/2023,Healthcare From Independent Sector,Elective Recovery,Calderdale And Huddersfield Orthopaedic Partnership Llp,INV-0089,"75,000.00 ",Provision of Orthopaedic and/or Specialty Healthcare Services,LS8 2JH
Surgery & Anaesthetics,Surgical Divisional Support,09/08/2023,Healthcare From Commercial Sector,Elective Recovery,Calderdale And Huddersfield Orthopaedic Partnership Llp,INV-0090,"42,668.10 ",Provision of Orthopaedic and/or Specialty Healthcare Services,LS8 2JH
Surgery & Anaesthetics,Surgical Divisional Support,09/08/2023,Healthcare From Commercial Sector,Elective Recovery,Calderdale And Huddersfield Orthopaedic Partnership Llp,INV-0092,"75,000.00 ",Provision of Orthopaedic and/or Specialty Healthcare Services,LS8 2JH
Surgery & Anaesthetics,Surgical Divisional Support,09/08/2023,Healthcare From Commercial Sector,Elective Recovery,Calderdale And Huddersfield Orthopaedic Partnership Llp,INV-0093,"68,346.72 ",Provision of Orthopaedic and/or Specialty Healthcare Services,LS8 2JH
Surgery & Anaesthetics,Surgical Divisional Support,25/08/2023,Healthcare From Commercial Sector,Elective Recovery,Calderdale And Huddersfield Orthopaedic Partnership Llp,INV-0095,"75,000.00 ",Provision of Orthopaedic and/or Specialty Healthcare Services,LS8 2JH
Corporate Services,Service Performance,18/08/2023,Contract : Other External,Pfi,Calderdale Hospital Spc Ltd,CASI100,"3,452,414.40 ",PFI contract monthly payment,M20 2YY
Corporate Services,Service Performance,11/08/2023,External Contracts : Catering,Pfi,Calderdale Hospital Spc Ltd,CASI101,"84,697.57 ",Additional variations,M20 2YY
Corporate Services,Service Performance,11/08/2023,Minor Works,Pfi,Calderdale Hospital Spc Ltd,CASI105,"293,349.74 ",New Works Instructions,M20 2YY
Corporate Services,Service Performance,09/08/2023,Minor Works,Pfi,Calderdale Hospital Spc Ltd,CASI99,"60,905.18 ",Calderdale LED Project,M20 2YY
Corporate Services,Service Performance,11/08/2023,Rates,Properties,Calderdale Metropolitan Borough Council,25202391017613,"77,440.00 ",Council Tax for Calderdale Royal Hospital for 23/24,HX1 1TP
Corporate Services,Corporate Services,07/08/2023,Professional Fees,Corporate Services,Care Quality Commission,43323876,"35,636.00 ",Annual Fee: NHS Trusts,LS11 1HP
Health Informatics,Information,11/08/2023,Computer Software / License Fees,Corporate Information & Data Standards,Catalyst BI Limited,INV7065,"1,118.26",Maintenance QlikView Enterprise Edition Server (1 x £1118:26)  ,LS23 6LP
Health Informatics,Information,11/08/2023,Computer Software / License Fees,Corporate Information & Data Standards,Catalyst BI Limited,INV7065,"5,810.11",Maintenance QlikView SBE Upgrade to Enterprise Edition Server (1 x £5810:11).  ,LS23 6LP
Health Informatics,Information,11/08/2023,Computer Software / License Fees,Corporate Information & Data Standards,Catalyst BI Limited,INV7065,"35,527.32",Maintenance QlikView Document CAL (738 x £48:14)  ,LS23 6LP
Health Informatics,Information,11/08/2023,Computer Software / License Fees,Corporate Information & Data Standards,Catalyst BI Limited,INV7065,"11,487.70",Maintenance QlikView Named User CAL (70 x £164:11) .  ,LS23 6LP
Health Informatics,Information,11/08/2023,Computer Software / License Fees,Corporate Information & Data Standards,Catalyst BI Limited,INV7065,"1,218.00",Maintenance QlikView Small Business Edition Server (1 x £1218:00).  ,LS23 6LP
Health Informatics,Information,11/08/2023,Computer Software / License Fees,Corporate Information & Data Standards,Catalyst BI Limited,INV7065,"16,544.85",Maintenance QlikView Dual Use Upgrade - 4400450133788245  (1 x £16544:85)  ,LS23 6LP
Health Informatics,Information,11/08/2023,Computer Software / License Fees,Corporate Information & Data Standards,Catalyst BI Limited,INV7065,"2,749.47",Maintenance Qlik NPrinting Server: Licence: 4400 4607 1813 6967 (1 x £2749:47)  ,LS23 6LP
Health Informatics,Information,11/08/2023,Computer Software / License Fees,Corporate Information & Data Standards,Catalyst BI Limited,INV7065,739.53,Maintenance Qlik NPrinting Designer - 4407 5067 0446 3063 4409 4060 5363 9967 4408 6069 0012 0944 (3 x £246:51)   ,LS23 6LP
Health Informatics,Modernisation Programme,02/08/2023,Computer Software / License Fees,Modernisation Programme,Cerner Ltd,102244124,"52,859.98 ",Cerner CCN 007 - Single Sign on - annual maintenance charge £44049.98 - to match to order rwyf400038351,W2 1AF
Health Informatics,Modernisation Programme,02/08/2023,Computer Software / License Fees,Modernisation Programme,Cerner Ltd,102261454,"63,112.80 ",Cerner Table 12: RHO Recurring Charges. Monthly commencing from the Effective Date and continuing until the end of the Term £52594 monthly for 2023.,W2 1AF
Health Informatics,Modernisation Programme,02/08/2023,Computer Software / License Fees,Modernisation Programme,Cerner Ltd,102261527,"38,400.00 ",Cerner CCN053 Nuance Drage medical one speech recognition shared computing services monthly recuring charge £32000 for 2023. to match to order rwyr400053037,W2 1AF
Health Informatics,Modernisation Programme,25/08/2023,Computer Software / License Fees,Modernisation Programme,Cerner Ltd,102273041,"63,112.80 ",Cerner Table 12: RHO Recurring Charges. Monthly commencing from the Effective Date and continuing until the end of the Term £52594 monthly for 2023.,W2 1AF
Health Informatics,Modernisation Programme,25/08/2023,Computer Software / License Fees,Modernisation Programme,Cerner Ltd,102273114,"38,400.00 ",Cerner CCN053 Nuance Drage medical one speech recognition shared computing services monthly recuring charge £32000 for 2023. to match to order rwyr400053037,W2 1AF
Families & Specialist Services,Pathology,04/08/2023,Laboratory Test Kits,Microbiology,Chrystal Consulting Ltd,63124,"190,889.45 ",Diasorin Managed Service Contract ,M22 5HQ
Health Informatics,Service Delivery,09/08/2023,Computer Hardware Purchases,Service Delivery,Cisilion Ltd,INVUK0019228,"61,336.80 ",HPE 5140 48G POE+ 2SFP+ 2XGT EI Sw + Delivery ,KT22 9UT
Balance Sheet,L2 Current Assets,04/08/2023,Finished Processed Goods,Stock & Work In Progress,Csl Behring Uk Ltd,994058157,"32,955.00 ",Pharmaceutical Purchase,RH16 1AH
Recharges,Recharges,09/08/2023,Med Surg Eqpt Hire,Recharges,"Five Mobility Ltd		",14270,"40,192.80 ",HIRE OF SPECIALIST THERAPY EQUIPMENT,YO8 8QQ
Balance Sheet,L2 Current Assets,25/08/2023,Finished Processed Goods,Stock & Work In Progress,Janssen-Cilag Ltd,930927099,"41,472.00 ",Pharmaceutical Purchase,HP12 4EG
Balance Sheet,L2 Current Assets,25/08/2023,Finished Processed Goods,Stock & Work In Progress,Janssen-Cilag Ltd,930930090,"41,472.00 ",Pharmaceutical Purchase,HP12 4EG
CHS Estates,L2 Estates,04/08/2023,Rates,Estates Operations,Kirklees Council,969286425_2023,"56,051.00 ",Council Tax for HRI for 23/24,HD1 2NF
Corporate Services,Finance,16/08/2023,Audit Fees : Statutory,Finance,KPMG LLP,5502627551,"114,838.80 ",TRUST FINANCIAL STATEMENTS AUDIT 22/23 - 2ND YEAR OF CONTRACT,WD17 1DE
Corporate Services,Finance,16/08/2023,Audit Fees : Statutory,Finance,KPMG LLP,5502658841,"25,651.20 ",22/23 AUDIT WORK - ISA315R AUDIT FEES,WD17 1DE
Families & Specialist Services,Pharmacy,04/08/2023,Healthcare From Commercial Sector,Pharm Gen,L Rowland & Company (Retail) Ltd,1800000858,"98,095.17",Rowlands Outpatient Pharmacy contract DISPENSING FEE costs,WA7 3DJ
Families & Specialist Services,Pharmacy,04/08/2023,Healthcare From Commercial Sector,Pharm Gen,L Rowland & Company (Retail) Ltd,1800000858,"808,324.00 ",Rowlands Outpatient Pharmacy Contract MEDICINES SPEND,WA7 3DJ
Families & Specialist Services,Radiology,14/08/2023,Furniture And Fittings,Ct,Medispace B.V.,20230375,"61,568.24 ",Rental of cm050 ct scan box with canon prime 160 slice CT plus 2 radiographers to run the service 8am - 8pm 7days a week,2712 PJ The Netherlands
Families & Specialist Services,Radiology,14/08/2023,Furniture And Fittings,Ct,Medispace B.V.,20230400,"30,784.12 ",Rental of cm050 ct scan box with canon prime 160 slice CT plus 2 radiographers to run the service 8am - 8pm 7days a week,2712 PJ The Netherlands
Families & Specialist Services,Radiology,01/09/2023,Furniture And Fittings,Ct,Medispace B.V.,20230444,"30,784.12 ",Rental of cm050 ct scan box with canon prime 160 slice CT plus 2 radiographers to run the service 8am - 8pm 7days a week,2712 PJ The Netherlands
Families & Specialist Services,Radiology,01/09/2023,Furniture And Fittings,Ct,Medispace B.V.,20230445,"30,784.12 ",Rental of cm050 ct scan box with canon prime 160 slice CT plus 2 radiographers to run the service 8am - 8pm 7days a week,2712 PJ The Netherlands
Families & Specialist Services,Radiology,01/09/2023,Furniture And Fittings,Ct,Medispace B.V.,20230446,"30,784.12 ",Rental of cm050 ct scan box with canon prime 160 slice CT plus 2 radiographers to run the service 8am - 8pm 7days a week,2712 PJ The Netherlands
Families & Specialist Services,Pathology,15/08/2023,Blood Products,Blood Sciences,NHS Blood And Transplant,7016703,"88,143.21 ",MONTHLY CONTRACT CHARGE BLOOD & COMPONENTS,LS15 7TW
Families & Specialist Services,Pathology,15/08/2023,Blood Products,Blood Sciences,NHS Blood And Transplant,7016704,"31,648.12 ",MONTHLY CONTRACT CHARGE BLOOD & COMPONENTS,LS15 7TW
Corporate Services,Service Performance,09/08/2023,Contract : Other External,Properties,NHS Property Services Ltd,698588,"-29,380.87 ",Service Charge Todmorden Health Centre,EC2V 7NG
Corporate Services,Service Performance,09/08/2023,Contract : Other External,Properties,NHS Property Services Ltd,703882,"33,281.85 ",Rent Brighouse Health Centre,EC2V 7NG
Corporate Services,Service Performance,04/08/2023,Contract : Other External,Properties,NHS Property Services Ltd,703885,"40,409.65 ",Brighouse Health Centre Rent,EC2V 7NG
Corporate Services,Service Performance,04/08/2023,Contract : Other External,Properties,NHS Property Services Ltd,705229,"44,478.90 ",Brighouse Health Centre service Charge rates and FM for 23-24,EC2V 7NG
Corporate Services,Service Performance,04/08/2023,Contract : Other External,Properties,NHS Property Services Ltd,705232,"41,915.66 ",Service Charge Todmorden Health Centre,EC2V 7NG
Corporate Services,Quality,17/07/2023,Clinical Negligence,Quality,NHS Resolution,SICX413063,"1,769,033.80 ",Clinical Negligence provision,SW1W 9SZ
Corporate Services,Quality,17/07/2023,Insurance Costs,Quality,NHS Resolution,SICX413063,"1,769,033.80 ",Clinical Negligence provision,SW1W 9SZ
Families & Specialist Services,Womens,17/07/2023,Clinical Negligence,Womens Management,NHS Resolution,SICX413063,"1,769,033.80 ",Clinical Negligence provision,SW1W 9SZ
CHS Balance Sheet,Current Liabilities,04/08/2023,Non- NHS Trade Creditors < One Year,Other Creditors,NHS Supply Chain,1124091000,"126,531.33 ",Goods delivered week ending 07-Jul-2023,DE55 4QJ
CHS Balance Sheet,Current Liabilities,04/08/2023,Non- NHS Trade Creditors < One Year,Other Creditors,NHS Supply Chain,1124095503,"215,087.09 ",Goods delivered week ending 07-Jul-2023,DE55 4QJ
CHS Balance Sheet,Current Liabilities,11/08/2023,Non- NHS Trade Creditors < One Year,Other Creditors,NHS Supply Chain,1124096983,"149,063.26 ",Goods delivered week ending 14-Jul-2023,DE55 4QJ
CHS Balance Sheet,Current Liabilities,11/08/2023,Non- NHS Trade Creditors < One Year,Other Creditors,NHS Supply Chain,1124102422,"146,163.61 ",Goods delivered week ending 14-Jul-2023,DE55 4QJ
CHS Balance Sheet,Current Liabilities,18/08/2023,Non- NHS Trade Creditors < One Year,Other Creditors,NHS Supply Chain,1124106126,"140,360.53 ",Goods delivered week ending 21-Jul-2023,DE55 4QJ
CHS Balance Sheet,Current Liabilities,18/08/2023,Non- NHS Trade Creditors < One Year,Other Creditors,NHS Supply Chain,1124110100,"180,376.96 ",Goods delivered week ending 21-Jul-2023,DE55 4QJ
CHS Balance Sheet,Current Liabilities,25/08/2023,Non- NHS Trade Creditors < One Year,Other Creditors,NHS Supply Chain,1124112632,"115,146.62 ",Goods delivered week ending 28-Jul-2023,DE55 4QJ
CHS Balance Sheet,Current Liabilities,25/08/2023,Non- NHS Trade Creditors < One Year,Other Creditors,NHS Supply Chain,1124117252,"141,425.23 ",Goods delivered week ending 28-Jul-2023,DE55 4QJ
CHS Estates,L2 Estates,04/08/2023,Med Surg Eqpt Mtce Contracts,Management Estates,NHS Supply Chain - Maintenance,2124002765,"49,416.84 ",Maintenance of Endoscopes & electro-medical equipment.,DE55 4QJ
CHS Estates,L2 Estates,16/08/2023,Med Surg Eqpt Mtce Contracts,Management Estates,NHS Supply Chain - Maintenance,2124003063,"37,215.60 ",Performance Plan TOP for Artis Zee Floor Mobile x-ray System ,DE55 4QJ
Corporate Services,Finance,25/08/2023,Computer Software / License Fees,Finance,Northumbria Healthcare NHS Foundation Trust,7550006940,"23,965.90 ",Oracle Cloud Finance System monthly cost,NE27 0QJ
Community Division,Community Nursing,04/08/2023,Continence Products,Bladder and Bowel Service,Paul Hartmann Ltd,71647728O,"25,222.92 ",Continence Home Delivery Contract.,OL10 2TT
Community Division,Community Nursing,25/08/2023,Continence Products,Bladder and Bowel Service,Paul Hartmann Ltd,71652466O,"27,492.65 ",Continence Home Delivery Contract.,OL10 2TT
Corporate Services,Service Performance,25/08/2023,Contract : Other External,Properties,Pennine Property Partnership Llp,SINV3794,"55,066.34 ",Acre Mills Outpatient Department Service Charge Recharge - July 2023,WA4 6HL
Surgery & Anaesthetics,Surgical Divisional Support,09/08/2023,Healthcare From Commercial Sector,Support Services,Pioneer Healthcare Ltd,1003,"59,383.91 ",Insourcing Services ,S10 5UB
Surgery & Anaesthetics,Surgical Divisional Support,09/08/2023,Healthcare From Commercial Sector,Support Services,Pioneer Healthcare Ltd,1004,"26,702.56 ",Insourcing Services ,S10 5UB
Surgery & Anaesthetics,Surgical Divisional Support,09/08/2023,Healthcare From Commercial Sector,Support Services,Pioneer Healthcare Ltd,144,"-42,684.50 ",Insourcing Services ,S10 5UB
Surgery & Anaesthetics,Surgical Divisional Support,09/08/2023,Healthcare From Commercial Sector,Support Services,Pioneer Healthcare Ltd,739,"77,223.14 ",Insourcing Services ,S10 5UB
Surgery & Anaesthetics,Surgical Divisional Support,09/08/2023,Healthcare From Commercial Sector,Support Services,Pioneer Healthcare Ltd,859,"42,684.50 ",Insourcing Services ,S10 5UB
Balance Sheet,L2 Current Assets,25/08/2023,Finished Processed Goods,Stock & Work In Progress,Roche Products Ltd,1322290507,"38,832.00 ",Pharmaceutical Purchase,AL7 1TW
Balance Sheet,L2 Current Assets,25/08/2023,Finished Processed Goods,Stock & Work In Progress,Roche Products Ltd,1322290694,"62,790.00 ",Pharmaceutical Purchase,AL7 1TW
Balance Sheet,L2 Current Assets,25/08/2023,Finished Processed Goods,Stock & Work In Progress,Roche Products Ltd,1322291657,"40,404.00 ",Pharmaceutical Purchase,AL7 1TW
Balance Sheet,L2 Current Assets,25/08/2023,Finished Processed Goods,Stock & Work In Progress,Roche Products Ltd,1322291849,"65,520.00 ",Pharmaceutical Purchase,AL7 1TW
Balance Sheet,L2 Current Assets,25/08/2023,Finished Processed Goods,Stock & Work In Progress,Roche Products Ltd,1322292672,"36,518.40 ",Pharmaceutical Purchase,AL7 1TW
Balance Sheet,L2 Current Assets,25/08/2023,Finished Processed Goods,Stock & Work In Progress,Roche Products Ltd,1322293012,"65,520.00 ",Pharmaceutical Purchase,AL7 1TW
Balance Sheet,L2 Current Assets,25/08/2023,Finished Processed Goods,Stock & Work In Progress,Roche Products Ltd,1322294169,"40,404.00 ",Pharmaceutical Purchase,AL7 1TW
Balance Sheet,L2 Current Assets,25/08/2023,Finished Processed Goods,Stock & Work In Progress,Roche Products Ltd,1322294349,"65,520.00 ",Pharmaceutical Purchase,AL7 1TW
Families & Specialist Services,Pathology,18/08/2023,Laboratory Chemicals,Path Chemical Pathology,Siemens Healthcare Diagnostics Ltd,115177944,"187,479.89 ",Managed Service Contract  01/07/2023,GU16 8QD
Health Informatics,Service Delivery,11/08/2023,Computer Hardware Purchases,Service Delivery,Softcat Plc,INVUK932061,"170,442.23 ",LogRhythm Axon SaaS Subscription    ,SL7 1TB
Health Informatics,Service Delivery,16/08/2023,Computer Hardware Purchases,Service Delivery,Softcat Plc,INVUK933737,"35,200.44 ",Lenovo ThinkCentre M70q.,SL7 1TB
Balance Sheet,Fixed Assets,04/08/2023,Additions - Assets Under Construction,Capital (Surgical),Stryker Uk Ltd,29840277,"35,736.98 ",SHOULDER REPLACEMENT KIT ORTHO CHFT ,RG14 5AW
CHS Facilities,L2 Facilities,25/08/2023,External Contracts : Laundry,Laundry,Synergy Health Managed Services Ltd,50001377,"93,389.18 ",LAUNDRY SERVICE CONTRACT,WA9 5XH
Community Division,Community Therapies,25/08/2023,Patients Appliances : Purchase,Patient Appliances,Taycare Medical Ltd,25158,"40,170.99 ",supply of specialist orthotic products,LS12 6LL
Community Division,Community Therapies,25/08/2023,Patients Appliances : Purchase,Patient Appliances,Taycare Medical Ltd,25163,"31,987.60 ",supply of specialist orthotic products,LS12 6LL
Families & Specialist Services,Radiology,02/08/2023,Contractual Clinical Services,Rad General,Telemedicine Clinic Ltd,104130,"-100,000.00 ",Outsourcing Telemedicine – Teleradiology Reporting ,B3 2RT
Families & Specialist Services,Radiology,02/08/2023,Contractual Clinical Services,Rad General,Telemedicine Clinic Ltd,20230196,"126,483.93 ",Outsourcing Telemedicine – Teleradiology Reporting ,B3 2RT
Families & Specialist Services,Radiology,02/08/2023,Contractual Clinical Services,Rad General,Telemedicine Clinic Ltd,20230266,"129,186.14 ",Outsourcing Telemedicine – Teleradiology Reporting ,B3 2RT
Corporate Services,Corporate Services,09/08/2023,Healthcare From NHS Trusts,Corporate Services,The Leeds Teaching Hospitals NHS Trust,1410208946,"372,387.67 ",Various services provided by agreement as per West Yorkshire Association of Acute Trusts agreed methodology,LS9 7TF
Recharges,Recharges,02/08/2023,Healthcare From NHS Trusts,Recharges,The Leeds Teaching Hospitals NHS Trust,1410209131,"285,213.85 ",Various services provided by agreement as per West Yorkshire Association of Acute Trusts agreed methodology,LS9 7TF
Recharges,Recharges,02/08/2023,Healthcare From NHS Trusts,Recharges,The Leeds Teaching Hospitals NHS Trust,1410209316,"279,988.43 ",Various services provided by agreement as per West Yorkshire Association of Acute Trusts agreed methodology,LS9 7TF
Recharges,Recharges,02/08/2023,Healthcare From NHS Trusts,Recharges,The Leeds Teaching Hospitals NHS Trust,1410209364,"286,777.37 ",Various services provided by agreement as per West Yorkshire Association of Acute Trusts agreed methodology,LS9 7TF
Recharges,Recharges,02/08/2023,Healthcare From NHS Trusts,Recharges,The Leeds Teaching Hospitals NHS Trust,1410210351,"296,961.59 ",Various services provided by agreement as per West Yorkshire Association of Acute Trusts agreed methodology,LS9 7TF
CHS Facilities,L2 Facilities,16/08/2023,Contract : Premises Security,Security,The Leeds Teaching Hospitals NHS Trust,1410211064,"36,161.22 ",Security Contract,LS9 7TF
Medical Division,Medical Specialities,25/08/2023,Interpreting Services,Cardiology,TheBigWord Interpreting Services Limited,INV20275998,43.19,Interpreting Services,LS12 6AB
Medical Division,Medical Closed Account,25/08/2023,Interpreting Services,Closed Cost Centres,TheBigWord Interpreting Services Limited,INV20275998,212.95,Interpreting Services,LS12 6AB
Community Division,Community Nursing,25/08/2023,Interpreting Services,Community Matrons,TheBigWord Interpreting Services Limited,INV20275998,125.9,Interpreting Services,LS12 6AB
Families & Specialist Services,Childrens & Young Persons Services,25/08/2023,Interpreting Services,Community Paediatrics,TheBigWord Interpreting Services Limited,INV20275998,95.48,Interpreting Services,LS12 6AB
Community Division,Community Therapies,25/08/2023,Interpreting Services,Ctr Therapies Outpatients,TheBigWord Interpreting Services Limited,INV20275998,6222,Interpreting Services,LS12 6AB
Medical Division,Acute Medical,25/08/2023,Interpreting Services,Diabetes Endocrinology,TheBigWord Interpreting Services Limited,INV20275998,303.43,Interpreting Services,LS12 6AB
Surgery & Anaesthetics,Head & Neck,25/08/2023,Interpreting Services,Ent,TheBigWord Interpreting Services Limited,INV20275998,706.25,Interpreting Services,LS12 6AB
Surgery & Anaesthetics,General Surgery,25/08/2023,Interpreting Services,General Surgery,TheBigWord Interpreting Services Limited,INV20275998,409.92,Interpreting Services,LS12 6AB
Families & Specialist Services,Womens,25/08/2023,Interpreting Services,Gynaecology,TheBigWord Interpreting Services Limited,INV20275998,993.44,Interpreting Services,LS12 6AB
Families & Specialist Services,Childrens & Young Persons Services,25/08/2023,Interpreting Services,Inpatients Paediatrics,TheBigWord Interpreting Services Limited,INV20275998,110.09,Interpreting Services,LS12 6AB
Community Division,Community Nursing,25/08/2023,Interpreting Services,Lymphoedema,TheBigWord Interpreting Services Limited,INV20275998,178.91,Interpreting Services,LS12 6AB
Medical Division,Integrated Medical Specialities,25/08/2023,Interpreting Services,Medical Oncology,TheBigWord Interpreting Services Limited,INV20275998,40.25,Interpreting Services,LS12 6AB
Families & Specialist Services,Womens,25/08/2023,Interpreting Services,Obstetrics,TheBigWord Interpreting Services Limited,INV20275998,4096.91,Interpreting Services,LS12 6AB
Surgery & Anaesthetics,Operating Services,25/08/2023,Interpreting Services,Operating Services,TheBigWord Interpreting Services Limited,INV20275998,2087.58,Interpreting Services,LS12 6AB
Surgery & Anaesthetics,Head & Neck,25/08/2023,Interpreting Services,Ophthalmology,TheBigWord Interpreting Services Limited,INV20275998,1902.93,Interpreting Services,LS12 6AB
Surgery & Anaesthetics,Head & Neck,25/08/2023,Interpreting Services,Oral Surgery,TheBigWord Interpreting Services Limited,INV20275998,28.75,Interpreting Services,LS12 6AB
Families & Specialist Services,Outpatients & Records Services,25/08/2023,Interpreting Services,Outpatients Dept,TheBigWord Interpreting Services Limited,INV20275998,1324.26,Interpreting Services,LS12 6AB
Community Division,Community Therapies,25/08/2023,Interpreting Services,Paeds Physio / Ot,TheBigWord Interpreting Services Limited,INV20275998,127.71,Interpreting Services,LS12 6AB
Community Division,Community Therapies,25/08/2023,Interpreting Services,Paeds Salt,TheBigWord Interpreting Services Limited,INV20275998,118,Interpreting Services,LS12 6AB
Families & Specialist Services,Radiology,25/08/2023,Interpreting Services,Rad General,TheBigWord Interpreting Services Limited,INV20275998,2183.72,Interpreting Services,LS12 6AB
Medical Division,Medical Specialities,25/08/2023,Interpreting Services,Respiratory,TheBigWord Interpreting Services Limited,INV20275998,34.5,Interpreting Services,LS12 6AB
Community Division,Community Therapies,25/08/2023,Interpreting Services,Sit Team,TheBigWord Interpreting Services Limited,INV20275998,128.82,Interpreting Services,LS12 6AB
Total Trust,Surgery & Anaesthetics,25/08/2023,Interpreting Services,Surgical Closed Cost Centres,TheBigWord Interpreting Services Limited,INV20275998,657.57,Interpreting Services,LS12 6AB
Health Informatics,Service Delivery,02/08/2023,Computer Hardware Purchases,Service Delivery,Trustmarque Solutions Ltd,2365899,"155,062.08",Microsoft® EMS E3 All Languages Subscription Per User,YO41 1LZ
Health Informatics,Service Delivery,02/08/2023,Computer Hardware Purchases,Service Delivery,Trustmarque Solutions Ltd,2365899,"34,326.72",Microsoft®AzureActiveDirectoryP2K ShrdSvr AllLng MonthlySubscriptions-VolumeLicense MVL 1License PerUsr,YO41 1LZ
Health Informatics,Service Delivery,02/08/2023,Computer Hardware Purchases,Service Delivery,Trustmarque Solutions Ltd,2365899,296.28,Microsoft® O365 E3 Subscription Per User,YO41 1LZ
Health Informatics,Service Delivery,02/08/2023,Computer Hardware Purchases,Service Delivery,Trustmarque Solutions Ltd,2365899,11.04,Microsoft® Win E5 Add-on Win Enterprise Device Subscription,YO41 1LZ
Health Informatics,Service Delivery,02/08/2023,Computer Hardware Purchases,Service Delivery,Trustmarque Solutions Ltd,2365899,76.32,Microsoft® Win E5 VDA Step-up Win E3 VDA Device ,YO41 1LZ
Health Informatics,Service Delivery,02/08/2023,Computer Hardware Purchases,Service Delivery,Trustmarque Solutions Ltd,2365899,"124,286.40",Microsoft® O365 E1 Subscription Per User,YO41 1LZ
Health Informatics,Service Delivery,02/08/2023,Computer Hardware Purchases,Service Delivery,Trustmarque Solutions Ltd,2365899,"214,246.08",Microsoft® M365 Apps Enterprise Subscription Per User,YO41 1LZ
Health Informatics,Service Delivery,02/08/2023,Computer Hardware Purchases,Service Delivery,Trustmarque Solutions Ltd,2365899,"1,125.12",Microsoft® Power BI Pro Subscription Per User,YO41 1LZ
Health Informatics,Service Delivery,02/08/2023,Computer Hardware Purchases,Service Delivery,Trustmarque Solutions Ltd,2365899,35.15,Microsoft® Visio P1 Subscription Per User,YO41 1LZ
Health Informatics,Service Delivery,02/08/2023,Computer Hardware Purchases,Service Delivery,Trustmarque Solutions Ltd,2365899,"1,113.20",Microsoft® SQL CAL All Languages License & Software Assurance User CAL,YO41 1LZ
Health Informatics,Service Delivery,02/08/2023,Computer Hardware Purchases,Service Delivery,Trustmarque Solutions Ltd,2365899,478.48,SQL Server Standard ALng LSA,YO41 1LZ
Health Informatics,Service Delivery,02/08/2023,Computer Hardware Purchases,Service Delivery,Trustmarque Solutions Ltd,2365899,462.72,Microsoft® Win Remote Desktop Services CAL All Languages License & Software Assurance User CAL ,YO41 1LZ
Health Informatics,Service Delivery,02/08/2023,Computer Hardware Purchases,Service Delivery,Trustmarque Solutions Ltd,2365899,288.56,Win Server Standard Core ALng LSA 2L,YO41 1LZ
Health Informatics,Service Delivery,02/08/2023,Computer Hardware Purchases,Service Delivery,Trustmarque Solutions Ltd,2365899,115.07,Microsoft® Visio P2 Subscription Per User,YO41 1LZ
Balance Sheet,L2 Current Assets,25/08/2023,Other Debtors < One Year,Other Debtors,Tuskerdirect Ltd,79272,"136,746.25 ",Salary Sacrifice cars,WD18 8YF
Health Informatics,Corporate And Operations,02/08/2023,Data Lines,It Support,Virgin Media Business Ltd,926098-170,"42,660.00 ",HSCN Lines ,BD4 8PW
Families & Specialist Services,Outpatients & Records Services,18/08/2023,Computer Software / License Fees,Outpatients Dept,Vitalhub UK Ltd,INVVHUK00228,"37,680.00 ",Vital Hub UK (Intouch) licence and warranty renewal for Patient Flow solutions to cover period 9 February 2023 — 8 February 2024,WC2A 3TH
Balance Sheet,L2 Current Assets,25/08/2023,Other Debtors < One Year,Other Debtors,Wybone Ltd,0000051376,"27,529.80 ",42 Ltr Hybrid style Sackholder cw Removable Body and hands free frame with Silent Closing Lid,S74 9TF
Corporate Services,Finance,25/08/2023,Audit Fees : Internal,Finance,York and Scarborough Teaching Hospitals NHS Foundation Trust,1010088344,"38,060.00 ",INTERNAL AUDIT CHARGES INCLUDES COUNTER FRAUD DAYS,YO30 4RY
Medical Division,Emergency Medicine,02/08/2023,B5 Agency Nursing,A&E Nursing,Your Nurse Ltd,EHCX54,1953.5,B5 Agency Nursing,E14 5RE
Corporate Services,RAFT,02/08/2023,B5 Agency Nursing,Central Operations Team CORP,Your Nurse Ltd,EHCX54,517.5,B5 Agency Nursing,E14 5RE
Medical Division,Medical Specialities,02/08/2023,B5 Agency Nursing,Gastroenterology,Your Nurse Ltd,EHCX54,5469,B5 Agency Nursing,E14 5RE
Medical Division,Acute Medical,02/08/2023,B5 Agency Nursing,General Medicine,Your Nurse Ltd,EHCX54,8431.5,B5 Agency Nursing,E14 5RE
Surgery & Anaesthetics,General Surgery,02/08/2023,B5 Agency Nursing,General Surgery,Your Nurse Ltd,EHCX54,1962,B5 Agency Nursing,E14 5RE
Medical Division,Acute Medical,02/08/2023,B5 Agency Nursing,Geriatric Medicine,Your Nurse Ltd,EHCX54,11556.75,B5 Agency Nursing,E14 5RE
Medical Division,Integrated Medical Specialities,02/08/2023,B5 Agency Nursing,Ims Stroke / Rehabilitation,Your Nurse Ltd,EHCX54,1395,B5 Agency Nursing,E14 5RE
Medical Division,Medical Specialities,02/08/2023,B5 Agency Nursing,Respiratory,Your Nurse Ltd,EHCX54,1447.5,B5 Agency Nursing,E14 5RE
Surgery & Anaesthetics,Orthopaedics,02/08/2023,B5 Agency Nursing,Trauma & Orthopaedics,Your Nurse Ltd,EHCX54,1486.5,B5 Agency Nursing,E14 5RE
Medical Division,Emergency Medicine,02/08/2023,B5 Agency Nursing,A&E Nursing,Your Nurse Ltd,EHCX60,4800,B5 Agency Nursing,E14 5RE
Medical Division,Medical Specialities,02/08/2023,B5 Agency Nursing,Cardiology,Your Nurse Ltd,EHCX60,1864.5,B5 Agency Nursing,E14 5RE
Corporate Services,RAFT,02/08/2023,B5 Agency Nursing,Central Operations Team CORP,Your Nurse Ltd,EHCX60,1050.5,B5 Agency Nursing,E14 5RE
Medical Division,Medical Specialities,02/08/2023,B5 Agency Nursing,Gastroenterology,Your Nurse Ltd,EHCX60,4700.25,B5 Agency Nursing,E14 5RE
Medical Division,Acute Medical,02/08/2023,B5 Agency Nursing,General Medicine,Your Nurse Ltd,EHCX60,6430.25,B5 Agency Nursing,E14 5RE
Surgery & Anaesthetics,General Surgery,02/08/2023,B5 Agency Nursing,General Surgery,Your Nurse Ltd,EHCX60,4460,B5 Agency Nursing,E14 5RE
Medical Division,Acute Medical,02/08/2023,B5 Agency Nursing,Geriatric Medicine,Your Nurse Ltd,EHCX60,8631.5,B5 Agency Nursing,E14 5RE
Medical Division,Integrated Medical Specialities,02/08/2023,B5 Agency Nursing,Ims Stroke / Rehabilitation,Your Nurse Ltd,EHCX60,2292,B5 Agency Nursing,E14 5RE
Medical Division,Integrated Medical Specialities,02/08/2023,B5 Agency Nursing,Medical Oncology,Your Nurse Ltd,EHCX60,1854,B5 Agency Nursing,E14 5RE
Medical Division,Medical Specialities,02/08/2023,B5 Agency Nursing,Respiratory,Your Nurse Ltd,EHCX60,3243,B5 Agency Nursing,E14 5RE
Surgery & Anaesthetics,Orthopaedics,02/08/2023,B5 Agency Nursing,Trauma & Orthopaedics,Your Nurse Ltd,EHCX60,1764,B5 Agency Nursing,E14 5RE
Medical Division,Emergency Medicine,18/08/2023,B5 Agency Nursing,A&E Nursing,Your Nurse Ltd,EHCX61,6691.33,B5 Agency Nursing,E14 5RE
Medical Division,Medical Specialities,18/08/2023,B5 Agency Nursing,Cardiology,Your Nurse Ltd,EHCX61,456,B5 Agency Nursing,E14 5RE
Surgery & Anaesthetics,Critical Care,18/08/2023,B5 Agency Nursing,Critical Care,Your Nurse Ltd,EHCX61,1048,B5 Agency Nursing,E14 5RE
Surgery & Anaesthetics,General Surgery,18/08/2023,B5 Agency Nursing,Endoscopy,Your Nurse Ltd,EHCX61,370.5,B5 Agency Nursing,E14 5RE
Medical Division,Medical Specialities,18/08/2023,B5 Agency Nursing,Gastroenterology,Your Nurse Ltd,EHCX61,3282,B5 Agency Nursing,E14 5RE
Medical Division,Acute Medical,18/08/2023,B5 Agency Nursing,General Medicine,Your Nurse Ltd,EHCX61,5188,B5 Agency Nursing,E14 5RE
Surgery & Anaesthetics,General Surgery,18/08/2023,B5 Agency Nursing,General Surgery,Your Nurse Ltd,EHCX61,10006.5,B5 Agency Nursing,E14 5RE
Medical Division,Acute Medical,18/08/2023,B5 Agency Nursing,Geriatric Medicine,Your Nurse Ltd,EHCX61,11180.75,B5 Agency Nursing,E14 5RE
Families & Specialist Services,Womens,18/08/2023,B5 Agency Nursing,Gynaecology,Your Nurse Ltd,EHCX61,1534.5,B5 Agency Nursing,E14 5RE
Medical Division,Integrated Medical Specialities,18/08/2023,B5 Agency Nursing,Ims Stroke / Rehabilitation,Your Nurse Ltd,EHCX61,4218,B5 Agency Nursing,E14 5RE
Families & Specialist Services,Childrens & Young Persons Services,18/08/2023,B5 Agency Nursing,Inpatients Paediatrics,Your Nurse Ltd,EHCX61,536,B5 Agency Nursing,E14 5RE
Medical Division,Integrated Medical Specialities,18/08/2023,B5 Agency Nursing,Medical Oncology,Your Nurse Ltd,EHCX61,1477.5,B5 Agency Nursing,E14 5RE
Medical Division,Medical Specialities,18/08/2023,B5 Agency Nursing,Respiratory,Your Nurse Ltd,EHCX61,3849,B5 Agency Nursing,E14 5RE
Surgery & Anaesthetics,Orthopaedics,18/08/2023,B5 Agency Nursing,Trauma & Orthopaedics,Your Nurse Ltd,EHCX61,2328,B5 Agency Nursing,E14 5RE
Medical Division,Emergency Medicine,18/08/2023,B5 Agency Nursing,A&E Nursing,Your Nurse Ltd,EHCX62,5599,B5 Agency Nursing,E14 5RE
Medical Division,Medical Specialities,18/08/2023,B5 Agency Nursing,Cardiology,Your Nurse Ltd,EHCX62,481.5,B5 Agency Nursing,E14 5RE
Surgery & Anaesthetics,General Surgery,18/08/2023,B5 Agency Nursing,Endoscopy,Your Nurse Ltd,EHCX62,1111.5,B5 Agency Nursing,E14 5RE
Medical Division,Medical Specialities,18/08/2023,B5 Agency Nursing,Gastroenterology,Your Nurse Ltd,EHCX62,2209.5,B5 Agency Nursing,E14 5RE
Medical Division,Acute Medical,18/08/2023,B5 Agency Nursing,General Medicine,Your Nurse Ltd,EHCX62,8404.5,B5 Agency Nursing,E14 5RE
Surgery & Anaesthetics,General Surgery,18/08/2023,B5 Agency Nursing,General Surgery,Your Nurse Ltd,EHCX62,7530,B5 Agency Nursing,E14 5RE
Medical Division,Acute Medical,18/08/2023,B5 Agency Nursing,Geriatric Medicine,Your Nurse Ltd,EHCX62,6915,B5 Agency Nursing,E14 5RE
Medical Division,Integrated Medical Specialities,18/08/2023,B5 Agency Nursing,Ims Stroke / Rehabilitation,Your Nurse Ltd,EHCX62,8881.5,B5 Agency Nursing,E14 5RE
Families & Specialist Services,Childrens & Young Persons Services,18/08/2023,B5 Agency Nursing,Inpatients Paediatrics,Your Nurse Ltd,EHCX62,2623,B5 Agency Nursing,E14 5RE
Medical Division,Integrated Medical Specialities,18/08/2023,B5 Agency Nursing,Medical Oncology,Your Nurse Ltd,EHCX62,924,B5 Agency Nursing,E14 5RE
Medical Division,Medical Specialities,18/08/2023,B5 Agency Nursing,Respiratory,Your Nurse Ltd,EHCX62,2194.5,B5 Agency Nursing,E14 5RE
Surgery & Anaesthetics,Orthopaedics,18/08/2023,B5 Agency Nursing,Trauma & Orthopaedics,Your Nurse Ltd,EHCX62,2886,B5 Agency Nursing,E14 5RE
Medical Division,Emergency Medicine,18/08/2023,B5 Agency Nursing,A&E Nursing,Your Nurse Ltd,EHCX63,4526.5,B5 Agency Nursing,E14 5RE
Medical Division,Medical Specialities,18/08/2023,B5 Agency Nursing,Cardiology,Your Nurse Ltd,EHCX63,1384.5,B5 Agency Nursing,E14 5RE
Surgery & Anaesthetics,General Surgery,18/08/2023,B5 Agency Nursing,Endoscopy,Your Nurse Ltd,EHCX63,370.5,B5 Agency Nursing,E14 5RE
Medical Division,Medical Specialities,18/08/2023,B5 Agency Nursing,Gastroenterology,Your Nurse Ltd,EHCX63,2187,B5 Agency Nursing,E14 5RE
Medical Division,Acute Medical,18/08/2023,B5 Agency Nursing,General Medicine,Your Nurse Ltd,EHCX63,5376,B5 Agency Nursing,E14 5RE
Surgery & Anaesthetics,General Surgery,18/08/2023,B5 Agency Nursing,General Surgery,Your Nurse Ltd,EHCX63,6016.5,B5 Agency Nursing,E14 5RE
Medical Division,Acute Medical,18/08/2023,B5 Agency Nursing,Geriatric Medicine,Your Nurse Ltd,EHCX63,5259.5,B5 Agency Nursing,E14 5RE
Medical Division,Integrated Medical Specialities,18/08/2023,B5 Agency Nursing,Ims Stroke / Rehabilitation,Your Nurse Ltd,EHCX63,4764,B5 Agency Nursing,E14 5RE
Medical Division,Integrated Medical Specialities,18/08/2023,B5 Agency Nursing,Medical Oncology,Your Nurse Ltd,EHCX63,456,B5 Agency Nursing,E14 5RE
Medical Division,Medical Specialities,18/08/2023,B5 Agency Nursing,Respiratory,Your Nurse Ltd,EHCX63,2409,B5 Agency Nursing,E14 5RE
Surgery & Anaesthetics,Orthopaedics,18/08/2023,B5 Agency Nursing,Trauma & Orthopaedics,Your Nurse Ltd,EHCX63,2632.5,B5 Agency Nursing,E14 5RE
Medical Division,Emergency Medicine,18/08/2023,B5 Agency Nursing,A&E Nursing,Your Nurse Ltd,YNLX86,2986.5,B5 Agency Nursing,E14 5RE
Medical Division,Medical Specialities,18/08/2023,B5 Agency Nursing,Cardiology,Your Nurse Ltd,YNLX86,372,B5 Agency Nursing,E14 5RE
Surgery & Anaesthetics,Critical Care,18/08/2023,B5 Agency Nursing,Critical Care,Your Nurse Ltd,YNLX86,3717,B5 Agency Nursing,E14 5RE
Surgery & Anaesthetics,Head & Neck,18/08/2023,B5 Agency Nursing,Ent,Your Nurse Ltd,YNLX86,486,B5 Agency Nursing,E14 5RE
Medical Division,Acute Medical,18/08/2023,B5 Agency Nursing,General Medicine,Your Nurse Ltd,YNLX86,2904.16,B5 Agency Nursing,E14 5RE
Surgery & Anaesthetics,General Surgery,18/08/2023,B5 Agency Nursing,General Surgery,Your Nurse Ltd,YNLX86,1300,B5 Agency Nursing,E14 5RE
Medical Division,Acute Medical,18/08/2023,B5 Agency Nursing,Geriatric Medicine,Your Nurse Ltd,YNLX86,4925.5,B5 Agency Nursing,E14 5RE
Medical Division,Integrated Medical Specialities,18/08/2023,B5 Agency Nursing,Ims Stroke / Rehabilitation,Your Nurse Ltd,YNLX86,1744,B5 Agency Nursing,E14 5RE
Families & Specialist Services,Childrens & Young Persons Services,18/08/2023,B5 Agency Nursing,Inpatients Paediatrics,Your Nurse Ltd,YNLX86,5935.5,B5 Agency Nursing,E14 5RE
Surgery & Anaesthetics,Operating Services,18/08/2023,B5 Agency Nursing,Operating Services,Your Nurse Ltd,YNLX86,1938,B5 Agency Nursing,E14 5RE
Medical Division,Medical Specialities,18/08/2023,B5 Agency Nursing,Respiratory,Your Nurse Ltd,YNLX86,1768,B5 Agency Nursing,E14 5RE
Surgery & Anaesthetics,Orthopaedics,18/08/2023,B5 Agency Nursing,Trauma & Orthopaedics,Your Nurse Ltd,YNLX86,1361,B5 Agency Nursing,E14 5RE
